[Event "FRA-ch Youth U16 2019"]
[Site "Hyeres"]
[Date "2019.04.14"]
[Round "1.1"]
[White "Boyer, Mahel"]
[Black "Mahieu, Luc"]
[Result "1-0"]
[ECO "B25"]
[WhiteElo "2342"]
[BlackElo "1985"]
[Annotator "NA"]
[PlyCount "106"]
[EventDate "2019.04.14"]
[EventType "swiss"]
[EventCountry "FRA"]
[SourceTitle "playchess.com"]
[Source "ChessBase"]
[SourceQuality "1"]
[TimeControl "5400+30"]

1. e4 {[%emt 0:17:08]} c5 {[%emt 0:00:01]} 2. d3 {[%emt 0:00:03]} d6 {[%emt 0:00:09]} 3. g3 {[%emt 0:00:04]} g6 {[%emt 0:00:07]} 4. Bg2 {[%emt 0:00:03]} Bg7 {[%emt 0:00:04]} 5. f4 {[%emt 0:00:03]} Nf6 {[%emt 0:00:22]} 6. Nf3 {[%emt 0:00:09]} O-O {[%emt 0:00:17]} 7. O-O {[%emt 0:00:06]} Nc6 {[%emt 0:00:12]} 8. Nc3 {[%emt 0:00:38]} Rb8 {[%emt 0:01:30]} 9. h3 {[%emt 0:00:05]} b5 {[%emt 0:00:04]} 10. g4 {[%emt 0:00:04]} b4 {[%emt 0:00:09]} 11. Ne2 {[%emt 0:00:02]} a5 {[%emt 0:01:54]} 12. Be3 {[%emt 0:03:58]} Bd7 {[%emt 0:06:49]} 13. Qd2 $11 {[%emt 0:04:44]} a4 {[%emt 0:05:31]} 14. Rab1 {[%emt 0:04:55]} Qc7 {[%emt 0:18:21]} 15. f5 {[%emt 0:01:44]} Na7 {[%emt 0:12:51]} 16. Bh6 {[%emt 0:10:03]} c4 {[%emt 0:07:29]} 17. Bxg7 {[%emt 0:08:54]} Kxg7 {[%emt 0:00:07]} 18. Nf4 {[%emt 0:00:25]} Bc6 {[%emt 0:13:39]} 19. g5 {[%emt 0:05:09]} Ne8 {[%emt 0:00:32]} 20. dxc4 {[%emt 0:00:12]} Qb6+ {[%emt 0:02:27]} 21. Qd4+ {[%emt 0:13:01]} Qxd4+ {[%emt 0:00:17]} 22. Nxd4 {[%emt 0:00:02]} Bd7 {[%emt 0:00:18]} 23. Rbe1 {[%emt 0:01:49]} Nc6 {[%emt 0:02:12]} 24. Nxc6 {[%emt 0:05:35]} Bxc6 {[%emt 0:00:02]} 25. fxg6 {[%emt 0:00:33]} hxg6 {[%emt 0:00:32]} 26. e5 {[%emt 0:00:06]} Bxg2 {[%emt 0:00:43]} 27. Kxg2 {[%emt 0:00:08]} e6 {[%emt 0:01:29]} 28. b3 {[%emt 0:00:51]} axb3 {[%emt 0:05:25]} 29. axb3 {[%emt 0:02:59]} dxe5 {[%emt 0:00:50]} 30. Rxe5 {[%emt 0:00:04]} Nd6 {[%emt 0:00:21]} 31. Rd1 {[%emt 0:05:52]} Rfd8 {[%emt 0:01:39]} 32. Rd3 {[%emt 0:04:49]} Kf8 {[%emt 0:04:09]} 33. c3 {[%emt 0:06:05]} bxc3 {[%emt 0:03:39]} 34. Rxc3 {[%emt 0:00:04]} Nf5 {[%emt 0:00:30]} 35. Nd3 {[%emt 0:01:46]} Rd4 {[%emt 0:01:52]} 36. c5 {[%emt 0:00:52]} Rbd8 {[%emt 0:00:19]} 37. Nf2 {[%emt 0:00:14]} Ke7 {[%emt 0:01:52]} 38. Re1 {[%emt 0:03:38]} Rb4 {[%emt 0:06:17]} 39. c6 {[%emt 0:00:49]} Rc8 {[%emt 0:00:34]} 40. Nd3 {[%emt 0:01:33]} Rb6 {[%emt 0:00:37]} 41. Ne5 {[%emt 0:00:09]} Nd4 {[%emt 0:01:05]} 42. Rd1 {[%emt 0:00:14]} Nxc6 {[%emt 0:03:02]} 43. Rd7+ {[%emt 0:00:37]} Ke8 {[%emt 0:00:04]} 44. Rd6 {[%emt 0:00:04]} Rxb3 {[%emt 0:01:00]} 45. Rcxc6 {[%emt 0:00:08]} Ra8 {[%emt 0:00:14]} 46. Rc2 {[%emt 0:00:29]} Rb5 {[%emt 0:00:20]} 47. Nf3 {[%emt 0:00:34]} Kf8 {[%emt 0:00:53]} 48. Rd4 {[%emt 0:00:55]} Rf5 {[%emt 0:00:20]} 49. Rc3 {[%emt 0:00:43]} Re8 {[%emt 0:01:20]} 50. Re3 {[%emt 0:01:48]} Ra5 {[%emt 0:00:30]} 51. Kg3 {[%emt 0:00:30]} Rf5 {[%emt 0:00:30]} 52. Kg2 Rb8 {[%emt 0:00:30]} 53. Kg3 {[%emt 0:01:00]} Re8 {[%emt 0:00:30]} 1-0

[Event "FRA-ch Youth U16 2019"]
[Site "Hyeres"]
[Date "2019.04.14"]
[Round "1.2"]
[White "Venard, Gautier"]
[Black "Popov, Konstantin"]
[Result "0-1"]
[ECO "A29"]
[WhiteElo "1979"]
[BlackElo "2328"]
[Annotator "NA"]
[PlyCount "47"]
[EventDate "2019.04.14"]
[EventType "swiss"]
[EventCountry "FRA"]
[SourceTitle "playchess.com"]
[Source "ChessBase"]
[SourceQuality "1"]
[TimeControl "5400+30"]

1. c4 {[%emt 0:00:00]} e5 {[%emt 0:00:00]} 2. Nc3 {[%emt 0:00:00]} Nf6 {[%emt 0:00:00]} 3. g3 {[%emt 0:00:00]} d5 {[%emt 0:00:05]} 4. cxd5 {[%emt 0:00:05]} Nxd5 {[%emt 0:00:12]} 5. Bg2 {[%emt 0:00:06]} Nb6 {[%emt 0:00:15]} 6. Nf3 {[%emt 0:00:08]} Nc6 {[%emt 0:00:15]} 7. O-O {[%emt 0:00:07]} Be7 {[%emt 0:00:29]} 8. a4 {[%emt 0:00:12]} a5 {[%emt 0:01:45]} 9. d4 {[%emt 0:01:01]} exd4 {[%emt 0:04:18]} 10. Nb5 {[%emt 0:00:11]} Bf6 {[%emt 0:03:43]} 11. Bf4 {[%emt 0:00:28]} Nd5 {[%emt 0:05:24]} 12. Nfxd4 {[%emt 0:03:20]} Nxd4 {[%emt 0:07:22]} 13. Bxd5 {[%emt 0:00:23]} O-O {[%emt 0:03:12]} 14. Nxc7 {[%emt 0:16:49]} Bg4 {[%emt 0:18:15]} 15. f3 {[%emt 0:08:50]} Bh3 {[%emt 0:00:25]} 16. Re1 {[%emt 0:18:30]} g5 {[%emt 0:19:11]} 17. Be3 {[%emt 0:02:29]} Nf5 {[%emt 0:00:23]} 18. Bb6 {[%emt 0:03:09]} Ra6 {[%emt 0:00:17]} 19. Bc5 {[%emt 0:30:01]} Qxc7 {[%emt 0:00:22]} 20. Rc1 {[%emt 0:00:27]} Qe5 {[%emt 0:12:46]} 21. Bxf8 {[%emt 0:07:09]} Qe3+ {[%emt 0:06:36]} 22. Kh1 {[%emt 0:00:08]} Qf2 {[%emt 0:03:01]} 23. Bxf7+ {[%emt 0:07:57]} Kh8 24. Bd5 {[%emt 0:00:30] Kg8} 0-1

[Event "FRA-ch Youth U16 2019"]
[Site "Hyeres"]
[Date "2019.04.14"]
[Round "1.3"]
[White "Degraeve, Remy"]
[Black "Lahoche, Dorian"]
[Result "1-0"]
[ECO "E62"]
[WhiteElo "2312"]
[BlackElo "1973"]
[Annotator "NA"]
[PlyCount "71"]
[EventDate "2019.04.14"]
[EventType "swiss"]
[EventCountry "FRA"]
[SourceTitle "playchess.com"]
[Source "ChessBase"]
[SourceQuality "1"]
[TimeControl "5400+30"]

1. d4 {[%emt 0:00:00]} Nf6 {[%emt 0:00:00]} 2. c4 {[%emt 0:00:00]} g6 {[%emt 0:00:00]} 3. g3 {[%emt 0:00:00]} Bg7 {[%emt 0:00:00]} 4. Bg2 {[%emt 0:00:00]} O-O {[%emt 0:00:09]} 5. Nc3 {[%emt 0:00:00]} d6 {[%emt 0:00:05]} 6. Nf3 {[%emt 0:00:00]} Nc6 {[%emt 0:00:10]} 7. O-O {[%emt 0:00:03]} Bd7 {[%emt 0:00:58]} 8. b3 {[%emt 0:05:15]} Rb8 {[%emt 0:01:07]} 9. Bg5 {[%emt 0:01:35]} h6 {[%emt 0:02:04]} 10. Bd2 {[%emt 0:01:10]} a6 {[%emt 0:04:13]} 11. d5 {[%emt 0:13:44]} Na5 {[%emt 0:03:24]} 12. Rc1 {[%emt 0:00:45]} b5 {[%emt 0:05:58]} 13. Nxb5 {[%emt 0:11:57]} Nxb3 {[%emt 0:04:13]} 14. Qxb3 {[%emt 0:04:20]} axb5 {[%emt 0:00:12]} 15. Nd4 {[%emt 0:01:03]} bxc4 {[%emt 0:06:09]} 16. Qxc4 {[%emt 0:00:22]} Ra8 {[%emt 0:09:25]} 17. Rb1 {[%emt 0:09:15]} Ra4 {[%emt 0:03:41]} 18. Rb4 {[%emt 0:00:06]} Rxb4 {[%emt 0:00:12]} 19. Bxb4 {[%emt 0:00:12]} Nxd5 {[%emt 0:11:26]} 20. Qxd5 {[%emt 0:03:25]} c5 {[%emt 0:02:22]} 21. Bxc5 {[%emt 0:00:05]} dxc5 {[%emt 0:00:06]} 22. Qxc5 {[%emt 0:00:08]} e5 {[%emt 0:04:10]} 23. Nc6 {[%emt 0:01:10]} Bxc6 {[%emt 0:00:10]} 24. Bxc6 {[%emt 0:01:36]} Qd4 {[%emt 0:03:12]} 25. Qb5 {[%emt 0:04:13]} Qa7 {[%emt 0:02:46]} 26. a4 {[%emt 0:03:34]} Rb8 {[%emt 0:00:17]} 27. Qd3 {[%emt 0:00:52]} Qa5 {[%emt 0:05:31]} 28. Rd1 {[%emt 0:04:28]} Bf6 {[%emt 0:05:06]} 29. Qf3 {[%emt 0:01:12]} Rd8 {[%emt 0:07:47]} 30. Rb1 {[%emt 0:00:48]} Kg7 {[%emt 0:00:28]} 31. Kg2 {[%emt 0:01:00]} Rc8 {[%emt 0:05:53]} 32. Rb7 {[%emt 0:01:36]} Rc7 {[%emt 0:01:41]} 33. Rxc7 {[%emt 0:00:15]} Qxc7 {[%emt 0:00:09]} 34. Qd5 {[%emt 0:00:04]} Bd8 {[%emt 0:00:39]} 35. Be8 {[%emt 0:00:12]} Bf6 {[%emt 0:07:33]} 36. a5 {[%emt 0:00:04]} 1-0

[Event "FRA-ch Youth U16 2019"]
[Site "Hyeres"]
[Date "2019.04.14"]
[Round "1.4"]
[White "Martinez Martinez, Mateo"]
[Black "Harutyunyan, Ruben"]
[Result "0-1"]
[ECO "D25"]
[WhiteElo "1972"]
[BlackElo "2310"]
[Annotator "NA"]
[PlyCount "108"]
[EventDate "2019.04.14"]
[EventType "swiss"]
[EventCountry "FRA"]
[SourceTitle "playchess.com"]
[Source "ChessBase"]
[SourceQuality "1"]
[TimeControl "5400+30"]

1. d4 {[%emt 0:13:31]} d5 {[%emt 0:00:00]} 2. c4 {[%emt 0:00:09]} dxc4 {[%emt 0:00:00]} 3. Nf3 {[%emt 0:00:14]} Nf6 {[%emt 0:00:00]} 4. e3 {[%emt 0:00:10]} b5 {[%emt 0:00:00]} 5. a4 {[%emt 0:00:15]} b4 {[%emt 0:00:00]} 6. Bxc4 {[%emt 0:00:32]} e6 {[%emt 0:00:00]} 7. O-O {[%emt 0:00:34]} Be7 {[%emt 0:00:00]} 8. Nbd2 {[%emt 0:02:49]} Bb7 {[%emt 0:00:11]} 9. Qc2 {[%emt 0:01:16]} Nbd7 {[%emt 0:03:30]} 10. b3 {[%emt 0:05:54]} O-O {[%emt 0:00:26]} 11. Bb2 {[%emt 0:00:46]} c5 {[%emt 0:00:39]} 12. dxc5 {[%emt 0:01:36]} Nxc5 {[%emt 0:00:50]} 13. Rfd1 {[%emt 0:11:38]} Rc8 {[%emt 0:04:33]} 14. Ng5 {[%emt 0:29:44]} g6 {[%emt 0:47:53]} 15. Nde4 {[%emt 0:06:39]} Nd5 {[%emt 0:17:23]} 16. Nxc5 {[%emt 0:01:18]} Rxc5 {[%emt 0:00:48]} 17. Ne4 {[%emt 0:02:00]} Rc8 {[%emt 0:00:35]} 18. Be5 {[%emt 0:01:07]} f5 {[%emt 0:05:45]} 19. Ng3 {[%emt 0:05:58]} Bf6 {[%emt 0:00:30]} 20. Qb2 {[%emt 0:00:42]} Qe7 {[%emt 0:06:55]} 21. a5 {[%emt 0:02:48]} Nc3 {[%emt 0:01:36]} 22. Bxf6 {[%emt 0:00:26]} Rxf6 {[%emt 0:00:27]} 23. Rd3 {[%emt 0:02:31]} Bd5 {[%emt 0:05:14]} 24. Bxd5 {[%emt 0:01:32]} exd5 {[%emt 0:00:06]} 25. Ne2 {[%emt 0:00:21]} Rfc6 {[%emt 0:02:28]} 26. Nxc3 {[%emt 0:02:06]} bxc3 {[%emt 0:01:18]} 27. Qc2 {[%emt 0:00:13]} Qe4 {[%emt 0:00:37]} 28. h3 {[%emt 0:05:36]} Rc5 {[%emt 0:00:03]} 29. Ra4 {[%emt 0:00:19]} Qe8 {[%emt 0:01:45]} 30. Rad4 {[%emt 0:00:37]} Qc6 {[%emt 0:00:51]} 31. b4 {[%emt 0:01:18]} Rb5 {[%emt 0:00:08]} 32. g3 {[%emt 0:00:32]} Kf7 {[%emt 0:00:34]} 33. Kg2 {[%emt 0:00:24]} Ke6 {[%emt 0:00:22]} 34. g4 {[%emt 0:00:34]} Kf6 {[%emt 0:00:50]} 35. f4 {[%emt 0:00:38]} Ke6 {[%emt 0:00:24]} 36. Kg3 {[%emt 0:00:29]} a6 {[%emt 0:00:29]} 37. g5 {[%emt 0:00:26]} Rc7 {[%emt 0:00:22]} 38. h4 {[%emt 0:00:20]} Rb8 {[%emt 0:00:45]} 39. Kg2 {[%emt 0:00:46]} Rbc8 {[%emt 0:00:22]} 40. Kg3 {[%emt 0:00:20]} Qb5 {[%emt 0:00:09]} 41. Kg2 {[%emt 0:00:40]} Rc4 {[%emt 0:00:23]} 42. Rxc4 {[%emt 0:00:37]} Qxc4 {[%emt 0:00:21]} 43. Rd4 {[%emt 0:00:08]} Qb5 {[%emt 0:00:06]} 44. Kf2 {[%emt 0:00:12]} Rc4 {[%emt 0:00:19]} 45. Rxc4 {[%emt 0:01:00]} Qxc4 {[%emt 0:00:06]} 46. b5 {[%emt 0:00:05]} axb5 {[%emt 0:01:08]} 47. a6 {[%emt 0:00:04]} d4 {[%emt 0:01:26]} 48. a7 {[%emt 0:00:37]} d3 {[%emt 0:00:43]} 49. a8=Q {[%emt 0:01:17]} dxc2 {[%emt 0:00:08]} 50. Qe8+ {[%emt 0:00:16]} Kd6 {[%emt 0:00:19]} 51. Qd8+ {[%emt 0:00:11]} Kc5 {[%emt 0:00:17]} 52. Qe7+ {[%emt 0:00:13]} Kb6 {[%emt 0:00:13]} 53. Qd6+ {[%emt 0:00:09]} Qc6 {[%emt 0:00:21]} 54. Qd4+ {[%emt 0:00:36]} Ka6 {[%emt 0:00:09]} 0-1

[Event "FRA-ch Youth U16 2019"]
[Site "Hyeres"]
[Date "2019.04.15"]
[Round "2.3"]
[White "Poulet, Benoit"]
[Black "Degraeve, Remy"]
[Result "1/2-1/2"]
[ECO "D05"]
[WhiteElo "2109"]
[BlackElo "2312"]
[Annotator "NA RC"]
[PlyCount "134"]
[EventDate "2019.04.14"]
[EventType "swiss"]
[EventCountry "FRA"]
[SourceTitle "playchess.com"]
[Source "ChessBase"]
[SourceQuality "1"]
[TimeControl "5400+30"]

{[%evp 8,134,16,9,14,4,47,32767,25,32,22,32767,38,17,30,0,31,35,31,37,33,6,53,61,40,42,10,14,28,60,84,43,49,49,50,56,39,42,41,41,45,50,43,30,55,51,65,67,72,61,61,57,120,109,105,104,146,102,106,99,98,98,100,69,212,32767,222,220,219,241,204,179,225,237,226,232,223,0,32767,0,0,0,0,0,0,0,0,0,0,0,0,0,0,0,0,0,0,0,0,0,0,0,0,0,0,0,0,0,0,0,0,0,0,32767,0,0,0,0,0,0,0,0,0,0,0,0,0,0,0]} 1. d4 {[%emt 0:00:00]} Nf6 {[%emt 0:00:00]} 2. Nf3 {[%emt 0:00:00]} d5 {[%emt 0:00:00]} 3. e3 {[%emt 0:00:00]} e6 {[%emt 0:00:00]} 4. Bd3 {[%emt 0:00:00]} c5 {[%emt 0:01:20]} 5. b3 {[%emt 0:00:29]} Nc6 {[%emt 0:00:04]} 6. Bb2 {[%emt 0:00:30]} Bd6 {[%emt 0:00:05]} 7. O-O {[%emt 0:00:28]} Qe7 {[%emt 0:01:39]} 8. dxc5 {[%emt 0:02:01] D05: Colle System with ...e6} (8. Ne5 O-O 9. a3 Nd7 10. f4 f5 11. Nd2 Nf6 12. c4 Bd7 13. Ndf3 cxd4 14. exd4 Ne4 15. cxd5 exd5 {½-½ (31) Goganov,A (2597)-Shkapenko,P (2407) Minsk 2015}) 8... Bxc5 {[%emt 0:00:24]} 9. c4 {[%emt 0:00:12]} dxc4 {[%emt 0:03:03]} 10. Bxc4 {[%emt 0:01:15]} O-O {[%emt 0:00:07]} 11. a3 $146 {[%emt 0:05:54]} ({Predecessor:} 11. Nc3 a6 12. Qb1 b5 13. Bd3 Bb7 14. Rc1 Rac8 15. Ng5 h6 {1-0 (37) Jardorf,S-Christensen,B Denmark 1990}) 11... a6 {[%emt 0:04:14]} 12. b4 {[%emt 0:02:01]} Ba7 {[%emt 0:00:05]} 13. Nbd2 {[%emt 0:04:32]} b5 {[%emt 0:00:34]} 14. Ba2 {[%emt 0:04:29]} a5 {[%emt 0:11:14]} 15. bxa5 {[%emt 0:05:56]} Nxa5 {[%emt 0:01:09]} 16. Bb1 {[%emt 0:03:28]} Ba6 {[%emt 0:05:41]} 17. Qc2 {[%emt 0:03:24]} Qc5 {[%emt 0:00:19]} 18. Bc3 {[%emt 0:01:53]} Rac8 {[%emt 0:06:42]} 19. Ne4 {[%emt 0:08:51]} Qh5 {[%emt 0:04:08]} 20. Nxf6+ {[%emt 0:01:34]} gxf6 {[%emt 0:00:01]} 21. Qxh7+ {[%emt 0:00:59]} Qxh7 {[%emt 0:00:04]} 22. Bxh7+ {[%emt 0:00:08]} Kxh7 {[%emt 0:00:01]} 23. Bxa5 {[%emt 0:00:10]} Bb7 {[%emt 0:01:29]} 24. Rfb1 {[%emt 0:05:05]} Rg8 {[%emt 0:01:13]} 25. Rb4 {[%emt 0:01:08]} Rg6 {[%emt 0:05:12]} 26. Ne1 {[%emt 0:01:19]} Rc5 {[%emt 0:01:43]} 27. Rd1 {[%emt 0:01:39]} Kg7 {[%emt 0:06:01]} 28. g3 {[%emt 0:01:16]} Bc6 {[%emt 0:01:16]} 29. Rh4 {[%emt 0:01:24]} Rc4 {[%emt 0:02:45]} 30. Rxc4 {[%emt 0:01:05]} bxc4 {[%emt 0:00:01]} 31. Rc1 {[%emt 0:01:12]} Bb5 {[%emt 0:01:58]} 32. Nf3 {[%emt 0:00:52]} Rh6 {[%emt 0:01:39]} 33. Nd2 {[%emt 0:03:06]} Rh8 {[%emt 0:00:14]} 34. Bc3 {[%emt 0:00:24]} Bc5 {[%emt 0:01:17]} 35. Rb1 {[%emt 0:07:20]} Ba6 {[%emt 0:01:34] [#]} (35... Bc6 $16) 36. Bxf6+ $1 {[%emt 0:01:09]} Kxf6 {[%emt 0:00:01]} 37. Ne4+ {[%emt 0:00:09]} Ke5 {[%emt 0:00:34]} 38. Nxc5 {[%emt 0:00:06]} Ra8 {[%emt 0:01:18]} 39. f4+ {[%emt 0:01:31]} Kd5 {[%emt 0:00:47] [#]} 40. Na4 $1 {[%emt 0:00:37]} Ke4 {[%emt 0:01:33]} 41. Kf2 {[%emt 0:01:26]} Rc8 {[%emt 0:02:12]} 42. Rb6 $2 {[%emt 0:01:48]} (42. Rb4 $18) 42... c3 {[%emt 0:02:10]} 43. Nxc3+ {[%emt 0:02:02]} Rxc3 {[%emt 0:00:03]} 44. Rxa6 {[%emt 0:00:07]} Rc2+ {[%emt 0:00:02]} 45. Ke1 {[%emt 0:00:35]} Kxe3 {[%emt 0:00:05]} 46. Kd1 {[%emt 0:00:06]} Rxh2 {[%emt 0:00:04]} 47. Rb6 {[%emt 0:01:18]} Kd3 {[%emt 0:05:58]} 48. Rb3+ {[%emt 0:00:25]} Kc4 {[%emt 0:00:03]} 49. Rf3 {[%emt 0:00:12]} f6 {[%emt 0:00:10]} 50. Re3 {[%emt 0:01:06]} Kd5 {[%emt 0:00:25]} 51. Re2 {[%emt 0:01:49]} Rh1+ {[%emt 0:00:07]} 52. Kc2 {[%emt 0:00:32]} Rg1 {[%emt 0:00:20]} 53. Re3 {[%emt 0:00:31]} e5 {[%emt 0:00:10]} 54. fxe5 {[%emt 0:01:22]} fxe5 {[%emt 0:00:01]} 55. Rd3+ {[%emt 0:02:53]} Ke4 {[%emt 0:00:54]} 56. Rb3 {[%emt 0:00:27]} Rg2+ {[%emt 0:00:10]} 57. Kd1 {[%emt 0:00:05]} Kd4 {[%emt 0:00:07]} 58. Rb4+ {[%emt 0:00:11]} Kc5 {[%emt 0:00:47]} 59. Rb3 {[%emt 0:02:12]} e4 {[%emt 0:00:17]} 60. Ke1 {[%emt 0:00:52]} Ra2 {[%emt 0:00:05]} 61. Kd1 {[%emt 0:00:29]} Kc4 {[%emt 0:00:19]} 62. Re3 {[%emt 0:00:08]} Kd4 {[%emt 0:00:05]} 63. Rb3 {[%emt 0:00:04]} e3 {[%emt 0:00:34]} 64. Rb8 {[%emt 0:00:12]} Ke4 {[%emt 0:00:46]} 65. Re8+ {[%emt 0:00:41]} Kf3 {[%emt 0:00:07]} (65... Kd3 $5 66. Rd8+ $8 Ke4 $11) 66. Rf8+ {[%emt 0:00:08]} Kg2 {[%emt 0:00:05]} 67. Re8 {[%emt 0:00:10]} Rxa3 $11 {[%emt 0:00:34]} 1/2-1/2

[Event "FRA-ch Youth U16 2019"]
[Site "Hyeres"]
[Date "2019.04.15"]
[Round "2.4"]
[White "Harutyunyan, Ruben"]
[Black "Rachid, Alexandre"]
[Result "1-0"]
[ECO "B20"]
[WhiteElo "2310"]
[BlackElo "2079"]
[Annotator "RC"]
[PlyCount "65"]
[EventDate "2019.04.14"]
[EventType "swiss"]
[EventCountry "FRA"]
[SourceTitle "playchess.com"]
[Source "ChessBase"]
[SourceQuality "1"]
[TimeControl "5400+30"]

1. e4 {[%emt 0:00:00]} c5 {[%emt 0:00:00]} 2. Ne2 {[%emt 0:00:00]} d6 {[%emt 0:02:25]} 3. g3 {[%emt 0:00:29]} Nc6 {[%emt 0:01:04]} 4. Bg2 {[%emt 0:00:06]} g6 {[%emt 0:00:18]} 5. c3 {[%emt 0:00:23]} Bg7 {[%emt 0:00:52]} 6. O-O {[%emt 0:06:13]} Nf6 {[%emt 0:01:52]} 7. d4 {[%emt 0:03:29]} e5 {[%emt 0:06:06]} 8. d5 {[%emt 0:04:21]} Ne7 {[%emt 0:00:12]} 9. f4 {[%emt 0:05:35]} Bd7 {[%emt 0:06:37]} 10. fxe5 {[%emt 0:06:26]} dxe5 {[%emt 0:00:06]} 11. Bg5 {[%emt 0:23:33]} Nc8 {[%emt 0:01:52]} 12. Nc1 {[%emt 0:01:42]} Qb6 {[%emt 0:43:05]} 13. Nd2 {[%emt 0:21:35]} O-O {[%emt 0:11:27]} 14. Nc4 {[%emt 0:01:04]} Qb5 {[%emt 0:03:53]} 15. b3 {[%emt 0:06:57]} Ne8 {[%emt 0:01:19]} 16. Nd3 {[%emt 0:00:21]} b6 {[%emt 0:05:35]} 17. a4 {[%emt 0:01:09]} Qa6 {[%emt 0:00:05]} 18. Ndxe5 {[%emt 0:00:39]} Qb7 {[%emt 0:00:08]} 19. Nxd7 {[%emt 0:00:35]} Qxd7 {[%emt 0:00:05]} 20. e5 {[%emt 0:00:15]} Rb8 {[%emt 0:01:57]} 21. Qe2 {[%emt 0:03:25]} Nc7 {[%emt 0:02:15]} 22. e6 {[%emt 0:02:57]} fxe6 {[%emt 0:00:22]} 23. Rxf8+ {[%emt 0:00:04]} Bxf8 {[%emt 0:00:31]} 24. dxe6 {[%emt 0:00:39]} Nxe6 {[%emt 0:07:01]} 25. Bh3 {[%emt 0:02:33]} Nf4 {[%emt 0:01:01]} 26. Bxf4 {[%emt 0:00:13]} Qxh3 {[%emt 0:00:26]} 27. Bxb8 {[%emt 0:00:05]} Ne7 {[%emt 0:01:25]} 28. Re1 {[%emt 0:00:37]} Nf5 {[%emt 0:01:11]} 29. Qe6+ {[%emt 0:00:38]} Kg7 {[%emt 0:00:05]} 30. Be5+ {[%emt 0:00:18]} Kh6 {[%emt 0:00:51]} 31. Bf4+ {[%emt 0:00:04]} Kg7 {[%emt 0:00:06]} 32. Qd7+ {[%emt 0:00:13]} Kg8 {[%emt 0:00:34]} 33. Re8 {[%emt 0:01:30]} 1-0

[Event "FRA-ch Youth U16 2019"]
[Site "Hyeres"]
[Date "2019.04.15"]
[Round "3.1"]
[White "Lomandong, Marc-Antoine"]
[Black "Popov, Konstantin"]
[Result "1-0"]
[ECO "A48"]
[WhiteElo "2036"]
[BlackElo "2328"]
[Annotator "NA"]
[PlyCount "75"]
[EventDate "2019.04.14"]
[EventType "swiss"]
[EventCountry "FRA"]
[SourceTitle "playchess.com"]
[Source "ChessBase"]
[SourceQuality "1"]
[TimeControl "5400+30"]

1. d4 {[%emt 0:00:00]} Nf6 {[%emt 0:02:52]} 2. Nf3 {[%emt 0:00:00]} g6 {[%emt 0:00:31]} 3. b4 {[%emt 0:00:14]} Bg7 {[%emt 0:00:38]} 4. Bb2 {[%emt 0:00:07]} d5 {[%emt 0:01:19]} 5. Nbd2 {[%emt 0:01:29]} O-O {[%emt 0:00:16]} 6. g3 {[%emt 0:04:07]} b6 {[%emt 0:00:28]} 7. Bg2 {[%emt 0:00:05]} Bb7 {[%emt 0:00:09]} 8. O-O {[%emt 0:00:10]} Nbd7 {[%emt 0:00:14]} 9. c4 {[%emt 0:02:58]} e6 {[%emt 0:02:46]} 10. a4 {[%emt 0:12:25]} a5 {[%emt 0:07:20]} 11. b5 {[%emt 0:00:47]} c6 {[%emt 0:05:25]} 12. Qb3 {[%emt 0:04:20]} cxb5 {[%emt 0:01:11]} 13. axb5 {[%emt 0:00:21]} Rc8 {[%emt 0:01:54]} 14. Rac1 {[%emt 0:00:18]} Ne4 {[%emt 0:06:18]} 15. Nxe4 {[%emt 0:04:42]} dxe4 {[%emt 0:00:01]} 16. Nd2 {[%emt 0:00:17]} f5 {[%emt 0:00:09]} 17. e3 {[%emt 0:02:20]} Rf7 {[%emt 0:00:52]} 18. Rfd1 {[%emt 0:16:29]} Qe8 {[%emt 0:18:02]} 19. Nb1 $14 {[%emt 0:14:38]} e5 {[%emt 0:09:49]} 20. Nc3 {[%emt 0:08:58]} exd4 21. exd4 {[%emt 0:00:01]} f4 {[%emt 0:10:19]} 22. gxf4 {[%emt 0:06:17]} Kh8 {[%emt 0:01:35]} 23. Ne2 {[%emt 0:01:37]} Qe6 {[%emt 0:01:35]} 24. Bh3 {[%emt 0:03:03]} Qf6 {[%emt 0:02:10]} 25. c5 {[%emt 0:02:45]} a4 {[%emt 0:11:02]} 26. Qe6 {[%emt 0:04:30]} bxc5 {[%emt 0:14:27]} 27. dxc5 {[%emt 0:00:20]} Qxb2 {[%emt 0:01:19]} 28. Qxf7 {[%emt 0:01:10]} Rf8 {[%emt 0:00:38]} 29. Qc4 {[%emt 0:00:17]} Nxc5 {[%emt 0:00:31]} 30. Rc2 {[%emt 0:00:36]} Qb3 {[%emt 0:00:31]} 31. Qxb3 {[%emt 0:07:37]} Nxb3 {[%emt 0:00:05]} 32. Be6 {[%emt 0:00:06]} h5 {[%emt 0:00:58]} 33. Rc7 {[%emt 0:00:48]} Na5 {[%emt 0:00:30]} 34. Rdd7 {[%emt 0:00:21]} Re8 {[%emt 0:00:34]} 35. Ba2 {[%emt 0:03:17]} Nb3 {[%emt 0:00:23]} 36. Rxg7 {[%emt 0:00:00]} Bd5 {[%emt 0:00:13]} 37. Nc3 {[%emt 0:00:00]} Be6 {[%emt 0:00:11]} 38. Rge7 {[%emt 0:01:30]} 1-0

[Event "FRA-ch Youth U16 2019"]
[Site "Hyeres"]
[Date "2019.04.15"]
[Round "3.2"]
[White "Mas, Victor"]
[Black "Harutyunyan, Ruben"]
[Result "0-1"]
[ECO "D02"]
[WhiteElo "2032"]
[BlackElo "2310"]
[Annotator "NA"]
[PlyCount "70"]
[EventDate "2019.04.14"]
[EventType "swiss"]
[EventCountry "FRA"]
[SourceTitle "playchess.com"]
[Source "ChessBase"]
[SourceQuality "1"]
[TimeControl "5400+30"]

1. d4 {[%emt 0:00:00]} Nf6 {[%emt 0:00:00]} 2. Nf3 {[%emt 0:00:06]} d5 {[%emt 0:00:00]} 3. g3 {[%emt 0:00:08]} c5 {[%emt 0:00:00]} 4. Bg2 {[%emt 0:01:36]} cxd4 {[%emt 0:00:00]} 5. Nxd4 {[%emt 0:00:29]} e5 {[%emt 0:00:00]} 6. Nb3 {[%emt 0:00:08]} Be7 {[%emt 0:00:15]} 7. Bg5 {[%emt 0:02:29] D02: 1 d4 d5 2 Nf3 sidelines, including 2...Nf6 3 g3 and 2...Nf6 3 Bf4} Ng8 {[%emt 0:08:13]} (7... Nbd7 8. e3 h6 9. Bxf6 Nxf6 10. Nc3 Be6 11. Qd2 Rc8 12. a3 O-O 13. Rd1 e4 14. O-O Qb6 {0-1 (62) Vastrukhin,O (2401)-Bocharov,D (2598) Kazan 2014}) 8. Bxe7 {[%emt 0:02:20]} Nxe7 {[%emt 0:00:04]} 9. O-O $146 {[%emt 0:00:36]} ({Predecessor:} 9. e4 Be6 10. c3 b6 11. O-O Nbc6 12. Na3 a6 13. Nc2 O-O 14. Qe2 Qc7 {0-1 (45) Dezelic,D-Marevic,A (2020) Zagreb 2011}) 9... O-O {[%emt 0:00:12]} 10. Qd2 {[%emt 0:13:41]} Nbc6 {[%emt 0:05:26]} 11. Rd1 {[%emt 0:03:13]} Be6 {[%emt 0:00:19]} 12. Qe1 {[%emt 0:10:27]} Qb6 {[%emt 0:01:38]} 13. Nc3 {[%emt 0:06:40]} Rad8 {[%emt 0:00:48]} 14. Na4 {[%emt 0:03:33]} Qc7 {[%emt 0:01:11]} 15. Nac5 {[%emt 0:02:15]} Bc8 {[%emt 0:00:30]} 16. Rac1 {[%emt 0:04:55]} b6 {[%emt 0:01:54]} 17. Nd3 {[%emt 0:00:08]} Be6 {[%emt 0:02:03]} 18. c3 {[%emt 0:07:18]} a5 {[%emt 0:08:58]} 19. Nd2 {[%emt 0:05:26]} f5 $15 {[%emt 0:11:05]} 20. Nf1 {[%emt 0:08:08]} f4 {[%emt 0:05:34]} 21. Qd2 {[%emt 0:04:19]} Ng6 {[%emt 0:04:21]} 22. Ne1 {[%emt 0:04:26]} e4 {[%emt 0:01:49]} 23. Nc2 {[%emt 0:01:00]} Qf7 {[%emt 0:08:44]} 24. Nd4 {[%emt 0:02:41]} Nce5 {[%emt 0:04:10]} 25. Qe1 {[%emt 0:03:07]} Bc8 {[%emt 0:04:46]} 26. f3 {[%emt 0:01:51]} exf3 {[%emt 0:02:51]} 27. Nxf3 {[%emt 0:00:20]} Ng4 {[%emt 0:14:20]} 28. h3 {[%emt 0:00:19]} Nf6 {[%emt 0:00:24]} 29. Qf2 {[%emt 0:04:09]} Ne4 {[%emt 0:02:01]} 30. Qxb6 {[%emt 0:00:17]} fxg3 {[%emt 0:00:05]} 31. Qb5 {[%emt 0:01:40]} Nf4 {[%emt 0:01:19]} 32. Ne3 {[%emt 0:02:09]} Nd6 {[%emt 0:02:03]} 33. Qb3 {[%emt 0:00:50]} Nxe2+ {[%emt 0:02:22]} 34. Kf1 {[%emt 0:00:01]} Nxc1 {[%emt 0:00:41]} 35. Rxc1 {[%emt 0:00:00]} Bxh3 {[%emt 0:00:43]} 0-1